[Event "Marshall CC Premier 04-2025"]
[Site "New York"]
[Date "2025.04.05"]
[Round "1.1"]
[White "Chasin, Nico"]
[Black "Creswell, Charlie"]
[Result "1-0"]
[Annotator "RC"]
[ECO "B48"]
[WhiteElo "2435"]
[BlackElo "1979"]
[PlyCount "65"]
[EventDate "2025.01.03"]
[EventType "swiss"]
[EventCountry "USA"]
[SourceTitle "playchess.com"]
[Source "ChessBase"]
[SourceQuality "1"]
[TimeControl "5400+30"]

1. e4 {[%emt 0:04:18]} c5 {[%emt 0:00:26]} 2. Nc3 {[%emt 0:00:07]} Nc6 {[%emt 0:00:04]} 3. Nge2 {[%emt 0:00:07]} e6 {[%emt 0:00:35]} 4. d4 {[%emt 0:00:07]} cxd4 {[%emt 0:00:04]} 5. Nxd4 {[%emt 0:00:03]} Qc7 {[%emt 0:00:06]} 6. Be3 {[%emt 0:01:14]} a6 {[%emt 0:00:05]} 7. g4 {[%emt 0:00:05]} Bb4 {[%emt 0:10:43]} 8. Nxc6 {[%emt 0:00:01]} Qxc6 {[%emt 0:02:57]} 9. Qd4 {[%emt 0:00:20]} Bxc3+ {[%emt 0:01:23]} 10. bxc3 {[%emt 0:00:03]} Nf6 {[%emt 0:02:01]} 11. g5 {[%emt 0:05:25]} Nxe4 {[%emt 0:05:56]} 12. Qxg7 {[%emt 0:00:13]} Rf8 {[%emt 0:00:01]} 13. Bg2 {[%emt 0:00:17]} Qxc3+ {[%emt 0:03:46]} 14. Qxc3 {[%emt 0:00:02]} Nxc3 {[%emt 0:00:02]} 15. Kd2 {[%emt 0:00:10]} Nb5 {[%emt 0:05:07]} 16. a4 {[%emt 0:01:15]} Nd6 {[%emt 0:02:03]} 17. Bc5 {[%emt 0:00:16]} Nc4+ {[%emt 0:00:04]} 18. Kc3 {[%emt 0:00:19]} d6 {[%emt 0:00:03]} 19. Kxc4 {[%emt 0:00:31]} dxc5 {[%emt 0:00:02]} 20. Be4 {[%emt 0:03:06]} h6 {[%emt 0:02:14]} 21. f4 {[%emt 0:03:01]} Rb8 {[%emt 0:10:40]} 22. Kxc5 {[%emt 0:01:54]} Ke7 {[%emt 0:08:27]} 23. Kb6 {[%emt 0:01:40]} Bd7 {[%emt 0:01:11]} 24. Ra3 {[%emt 0:01:22]} Bc6 {[%emt 0:04:42]} 25. Bxc6 {[%emt 0:00:11]} bxc6+ {[%emt 0:00:02]} 26. Ka5 {[%emt 0:00:01]} f6 {[%emt 0:07:44]} 27. gxh6 {[%emt 0:00:25]} Rh8 {[%emt 0:01:10]} 28. Rh3 {[%emt 0:00:02]} Rbd8 {[%emt 0:05:48]} 29. Rg1 {[%emt 0:00:02]} Rd5+ {[%emt 0:01:55]} 30. Kb6 {[%emt 0:00:00]} Rb8+ {[%emt 0:03:04]} 31. Kc7 {[%emt 0:00:06]} Rdd8 {[%emt 0:00:44]} 32. Rg7+ {[%emt 0:00:01]} Kf8 {[%emt 0:00:11]} 33. Rhg3 {[%emt 0:00:14]} 1-0

[Event "Marshall CC Premier 04-2025"]
[Site "New York"]
[Date "2025.04.05"]
[Round "1.2"]
[White "Saxena, Vihaan"]
[Black "Sarkar, Justin"]
[Result "1/2-1/2"]
[Annotator "RC"]
[ECO "D64"]
[WhiteElo "1913"]
[BlackElo "2305"]
[PlyCount "127"]
[EventDate "2025.01.03"]
[EventType "swiss"]
[EventCountry "USA"]
[SourceTitle "playchess.com"]
[Source "ChessBase"]
[SourceQuality "1"]
[TimeControl "5400+30"]

1. d4 {[%emt 0:00:14]} Nf6 {[%emt 0:01:14]} 2. c4 {[%emt 0:00:44]} e6 {[%emt 0:01:51]} 3. Nf3 {[%emt 0:01:56]} d5 {[%emt 0:02:39]} 4. Bg5 {[%emt 0:04:13]} Be7 {[%emt 0:11:30]} 5. e3 {[%emt 0:01:03]} O-O {[%emt 0:00:27]} 6. Qc2 {[%emt 0:05:35]} Nbd7 {[%emt 0:04:19]} 7. Nc3 {[%emt 0:04:16]} c6 {[%emt 0:02:22]} 8. Rc1 {[%emt 0:02:37]} a6 {[%emt 0:00:11]} 9. a3 {[%emt 0:01:36]} dxc4 {[%emt 0:12:39]} 10. Bxc4 {[%emt 0:00:10]} b5 {[%emt 0:00:05]} 11. Ba2 {[%emt 0:00:13]} c5 {[%emt 0:00:07]} 12. Ne4 {[%emt 0:18:02]} Qa5+ {[%emt 0:10:24]} 13. Qd2 {[%emt 0:08:55]} Qxd2+ {[%emt 0:00:11]} 14. Nexd2 {[%emt 0:05:40]} c4 {[%emt 0:00:11]} 15. O-O {[%emt 0:03:33]} Bb7 {[%emt 0:03:42]} 16. Bb1 {[%emt 0:00:19]} h6 {[%emt 0:01:11]} 17. Bh4 {[%emt 0:00:36]} Rfc8 {[%emt 0:00:53]} 18. Ne5 {[%emt 0:06:12]} Nxe5 {[%emt 0:14:25]} 19. dxe5 {[%emt 0:00:07]} Nd5 {[%emt 0:00:02]} 20. Bxe7 {[%emt 0:00:28]} Nxe7 {[%emt 0:00:03]} 21. Ne4 {[%emt 0:05:50]} Bxe4 {[%emt 0:00:37]} 22. Bxe4 {[%emt 0:00:08]} Ra7 {[%emt 0:17:56]} 23. Rfd1 {[%emt 0:01:39]} f5 {[%emt 0:00:17]} 24. exf6 {[%emt 0:01:37]} gxf6 {[%emt 0:00:02]} 25. Rd6 {[%emt 0:00:18]} Kf7 {[%emt 0:00:13]} 26. g3 {[%emt 0:02:03]} a5 {[%emt 0:02:40]} 27. Rb6 {[%emt 0:01:17]} Rc5 {[%emt 0:00:34]} 28. Rd1 {[%emt 0:02:31]} Nc8 {[%emt 0:02:57]} 29. Rb8 {[%emt 0:00:36]} Ke7 {[%emt 0:00:14]} 30. Bf3 {[%emt 0:02:53]} Rd7 {[%emt 0:04:21]} 31. Rxd7+ {[%emt 0:01:01]} Kxd7 {[%emt 0:00:02]} 32. Rb7+ {[%emt 0:00:30]} Kd6 {[%emt 0:00:08]} 33. h4 {[%emt 0:02:44]} f5 {[%emt 0:06:24]} 34. Be2 {[%emt 0:01:34]} Ne7 {[%emt 0:00:21]} 35. Kf1 {[%emt 0:03:11]} Nd5 {[%emt 0:01:20]} 36. Ke1 {[%emt 0:01:06]} c3 {[%emt 0:00:33]} 37. bxc3 {[%emt 0:00:23]} Nxc3 {[%emt 0:00:01]} 38. Bd3 {[%emt 0:00:27]} Rd5 {[%emt 0:01:10]} 39. Bc2 {[%emt 0:05:18]} a4 {[%emt 0:00:02]} 40. Rb6+ {[%emt 0:01:50]} Kd7 {[%emt 0:00:57]} 41. f3 {[%emt 0:00:22]} Rc5 {[%emt 0:00:47]} 42. Kd2 {[%emt 0:01:29]} Nd5 {[%emt 0:00:16]} 43. Rb7+ {[%emt 0:00:48]} Kc6 {[%emt 0:00:05]} 44. Rh7 {[%emt 0:00:53]} Nxe3 {[%emt 0:00:13]} 45. Kxe3 {[%emt 0:00:10]} Rxc2 {[%emt 0:00:03]} 46. Rxh6 {[%emt 0:00:04]} b4 {[%emt 0:01:58]} 47. axb4 {[%emt 0:01:49]} a3 {[%emt 0:00:14]} 48. Rxe6+ {[%emt 0:01:17]} Kb5 {[%emt 0:00:03]} 49. Re5+ {[%emt 0:01:10]} Kxb4 {[%emt 0:00:05]} 50. Re8 {[%emt 0:01:16]} a2 {[%emt 0:00:31]} 51. Rb8+ {[%emt 0:00:05]} Kc3 {[%emt 0:00:40]} 52. Ra8 {[%emt 0:00:06]} Kb2 {[%emt 0:00:08]} 53. Kf4 {[%emt 0:00:53]} Rc8 {[%emt 0:01:55]} 54. Rxa2+ {[%emt 0:01:24]} Kxa2 {[%emt 0:00:01]} 55. h5 {[%emt 0:00:55]} Rh8 {[%emt 0:00:12]} 56. Kg5 {[%emt 0:00:21]} Kb3 {[%emt 0:00:22]} 57. h6 {[%emt 0:00:56]} Kc4 {[%emt 0:00:10]} 58. Kg6 {[%emt 0:00:24]} Rg8+ {[%emt 0:01:56]} 59. Kxf5 {[%emt 0:00:18]} Rxg3 {[%emt 0:00:02]} 60. h7 {[%emt 0:00:15]} Rxf3+ {[%emt 0:00:12]} 61. Kg6 {[%emt 0:00:05]} Rh3 {[%emt 0:00:04]} 62. Kg7 {[%emt 0:00:04]} Kd5 {[%emt 0:00:04]} 63. h8=Q {[%emt 0:00:04]} Rxh8 {[%emt 0:00:02]} 64. Kxh8 {[%emt 0:00:34]} 1/2-1/2

[Event "Marshall CC Premier 04-2025"]
[Site "New York"]
[Date "2025.04.05"]
[Round "1.3"]
[White "Muthukumar, Haari"]
[Black "Smith, Daniel"]
[Result "1-0"]
[Annotator "RC"]
[ECO "B11"]
[WhiteElo "2197"]
[BlackElo "2006"]
[PlyCount "65"]
[EventDate "2025.01.03"]
[EventType "swiss"]
[EventCountry "USA"]
[SourceTitle "playchess.com"]
[Source "ChessBase"]
[SourceQuality "1"]
[TimeControl "5400+30"]

1. e4 {[%emt 0:00:03]} c6 {[%emt 0:00:25]} 2. Nf3 {[%emt 0:00:05]} d5 {[%emt 0:00:33]} 3. Nc3 {[%emt 0:00:06]} Bg4 {[%emt 0:01:59]} 4. h3 {[%emt 0:02:01]} Bxf3 {[%emt 0:01:46]} 5. Qxf3 {[%emt 0:00:04]} Nf6 {[%emt 0:00:31]} 6. d4 {[%emt 0:06:51]} dxe4 {[%emt 0:07:05]} 7. Qe3 {[%emt 0:00:19]} e6 {[%emt 0:04:09]} 8. Be2 {[%emt 0:04:03]} Bb4 {[%emt 0:05:59]} 9. O-O {[%emt 0:00:08]} Nd5 {[%emt 0:01:56]} 10. Qg3 {[%emt 0:01:48]} Nxc3 {[%emt 0:14:10]} 11. bxc3 {[%emt 0:00:59]} Bf8 {[%emt 0:00:11]} 12. Rb1 {[%emt 0:08:27]} b5 {[%emt 0:01:51]} 13. f3 {[%emt 0:02:06]} e3 {[%emt 0:02:21]} 14. f4 {[%emt 0:07:35]} g6 {[%emt 0:02:41]} 15. Qxe3 {[%emt 0:05:54]} Be7 {[%emt 0:03:20]} 16. Bf3 {[%emt 0:07:01]} O-O {[%emt 0:05:09]} 17. g4 {[%emt 0:07:20]} Qc7 {[%emt 0:04:46]} 18. Bg2 {[%emt 0:01:54]} Bd6 {[%emt 0:01:29]} 19. f5 {[%emt 0:03:39]} Re8 {[%emt 0:08:01]} 20. Qf3 {[%emt 0:02:42]} a6 {[%emt 0:02:14]} 21. Bh6 {[%emt 0:05:01]} Bf8 {[%emt 0:10:04]} 22. Bf4 {[%emt 0:05:39]} Qd7 {[%emt 0:04:05]} 23. fxg6 {[%emt 0:07:30]} hxg6 {[%emt 0:01:14]} 24. h4 {[%emt 0:00:33]} Bg7 {[%emt 0:02:57]} 25. h5 {[%emt 0:00:28]} Ra7 {[%emt 0:00:34]} 26. Qh3 {[%emt 0:03:35]} Bh8 {[%emt 0:01:14]} 27. Qg3 {[%emt 0:02:00]} Qd8 {[%emt 0:01:07]} 28. hxg6 {[%emt 0:01:54]} fxg6 {[%emt 0:00:41]} 29. Be4 {[%emt 0:00:38]} g5 {[%emt 0:01:16]} 30. Be5 {[%emt 0:00:58]} Bxe5 {[%emt 0:02:04]} 31. Qxe5 {[%emt 0:00:07]} Nd7 {[%emt 0:01:04]} 32. Bh7+ {[%emt 0:00:29]} Kxh7 {[%emt 0:00:37]} 33. Rf7+ {[%emt 0:00:02]} 1-0

[Event "Marshall CC Premier 04-2025"]
[Site "New York"]
[Date "2025.04.05"]
[Round "1.4"]
[White "Shen, Leo Xiaohang"]
[Black "Hebbar, Eshaan"]
[Result "1/2-1/2"]
[Annotator "RC"]
[ECO "B08"]
[WhiteElo "1998"]
[BlackElo "2175"]
[PlyCount "130"]
[EventDate "2025.01.03"]
[EventType "swiss"]
[EventCountry "USA"]
[SourceTitle "playchess.com"]
[Source "ChessBase"]
[SourceQuality "1"]
[TimeControl "5400+30"]

1. e4 {[%emt 0:00:01]} d6 {[%emt 0:00:19]} 2. d4 {[%emt 0:00:14]} Nf6 {[%emt 0:00:04]} 3. Nc3 {[%emt 0:00:07]} g6 {[%emt 0:00:07]} 4. Nf3 {[%emt 0:00:09]} Bg7 {[%emt 0:00:16]} 5. Bd3 {[%emt 0:00:26]} O-O {[%emt 0:00:18]} 6. O-O {[%emt 0:00:05]} c6 {[%emt 0:00:12]} 7. h3 {[%emt 0:00:19]} Nbd7 {[%emt 0:00:40]} 8. Ne2 {[%emt 0:02:08]} e5 {[%emt 0:00:36]} 9. c3 {[%emt 0:00:05]} d5 {[%emt 0:06:42]} 10. Ng3 {[%emt 0:02:01]} dxe4 {[%emt 0:08:03]} 11. Nxe4 {[%emt 0:00:28]} exd4 {[%emt 0:01:56]} 12. Nxd4 {[%emt 0:01:14]} Nxe4 {[%emt 0:02:34]} 13. Bxe4 {[%emt 0:00:04]} Nc5 {[%emt 0:00:05]} 14. Bc2 {[%emt 0:01:18]} Qc7 {[%emt 0:01:16]} 15. Qf3 {[%emt 0:02:09]} Ne6 {[%emt 0:00:38]} 16. Nxe6 {[%emt 0:00:52]} Bxe6 {[%emt 0:00:09]} 17. Be3 {[%emt 0:02:54]} Rfe8 {[%emt 0:01:26]} 18. Rfe1 {[%emt 0:02:06]} Rad8 {[%emt 0:05:07]} 19. Bb3 {[%emt 0:01:36]} Qa5 {[%emt 0:03:35]} 20. Bxe6 {[%emt 0:02:06]} Rxe6 {[%emt 0:00:18]} 21. Red1 {[%emt 0:00:46]} Rxd1+ {[%emt 0:12:23]} 22. Rxd1 {[%emt 0:00:12]} Qc7 {[%emt 0:00:20]} 23. Qf4 {[%emt 0:02:19]} Be5 {[%emt 0:01:06]} 24. Qa4 {[%emt 0:02:44]} a6 {[%emt 0:01:14]} 25. Qc2 {[%emt 0:03:07]} h5 {[%emt 0:01:05]} 26. Bg5 {[%emt 0:02:38]} Bd6 {[%emt 0:01:10]} 27. Qd2 {[%emt 0:01:40]} Kh7 {[%emt 0:10:25]} 28. c4 {[%emt 0:01:08]} Bc5 {[%emt 0:01:09]} 29. Bd8 {[%emt 0:03:57]} Qe5 {[%emt 0:01:14]} 30. Qd7 {[%emt 0:11:28]} Qf5 {[%emt 0:01:06]} 31. Bh4 {[%emt 0:06:00]} Re1+ {[%emt 0:07:31]} 32. Kh2 {[%emt 0:00:03]} Rxd1 {[%emt 0:00:11]} 33. Qxd1 {[%emt 0:00:03]} Bxf2 {[%emt 0:00:07]} 34. Bxf2 {[%emt 0:00:24]} Qxf2 {[%emt 0:00:01]} 35. Qb3 {[%emt 0:00:23]} b6 {[%emt 0:01:29]} 36. a4 {[%emt 0:01:22]} h4 {[%emt 0:00:23]} 37. Qc3 {[%emt 0:00:36]} Qf4+ {[%emt 0:02:51]} 38. Kg1 {[%emt 0:00:30]} c5 {[%emt 0:00:04]} 39. Qb3 {[%emt 0:00:31]} Qf6 {[%emt 0:00:51]} 40. Kh1 {[%emt 0:00:39]} Kg7 {[%emt 0:00:13]} 41. Qc2 {[%emt 0:00:39]} Qd4 {[%emt 0:00:15]} 42. Qb3 {[%emt 0:00:31]} g5 {[%emt 0:00:52]} 43. Qc2 {[%emt 0:01:31]} g4 {[%emt 0:00:57]} 44. hxg4 {[%emt 0:00:28]} Qxg4 {[%emt 0:00:02]} 45. b3 {[%emt 0:00:23]} Qg3 {[%emt 0:01:38]} 46. Qb2+ {[%emt 0:00:30]} Kg8 {[%emt 0:03:23]} 47. Qd2 {[%emt 0:00:42]} h3 {[%emt 0:00:31]} 48. gxh3 {[%emt 0:00:42]} Qxh3+ {[%emt 0:00:07]} 49. Kg1 {[%emt 0:00:04]} Qg3+ {[%emt 0:00:15]} 50. Kh1 {[%emt 0:00:38]} Kg7 {[%emt 0:01:41]} 51. Qd8 {[%emt 0:01:20]} Qg6 {[%emt 0:01:33]} 52. Qd5 {[%emt 0:01:21]} a5 {[%emt 0:00:24]} 53. Kh2 {[%emt 0:01:10]} Qg4 {[%emt 0:03:07]} 54. Qe5+ {[%emt 0:02:27]} Kg6 {[%emt 0:01:02]} 55. Qd6+ {[%emt 0:00:18]} Qe6 {[%emt 0:00:02]} 56. Qg3+ {[%emt 0:01:08]} Kf5 {[%emt 0:00:31]} 57. Qf2+ {[%emt 0:01:55]} Ke5 {[%emt 0:00:19]} 58. Qe3+ {[%emt 0:02:07]} Kd6 {[%emt 0:00:03]} 59. Qd3+ {[%emt 0:00:35]} Kc7 {[%emt 0:00:02]} 60. Qf3 {[%emt 0:00:20]} f5 {[%emt 0:02:53]} 61. Kg3 {[%emt 0:00:56]} Qe5+ {[%emt 0:00:31]} 62. Kh4 {[%emt 0:02:25]} Kd6 {[%emt 0:02:01]} 63. Kg5 {[%emt 0:00:18]} f4+ {[%emt 0:06:03]} 64. Kg4 {[%emt 0:00:04]} Qd4 {[%emt 0:02:20]} 65. Qxf4+ {[%emt 0:00:22]} Kc6 {[%emt 0:00:04]} 1/2-1/2

[Event "Marshall CC Premier 04-2025"]
[Site "New York"]
[Date "2025.04.05"]
[Round "1.5"]
[White "Hoffman, Luc"]
[Black "Kozower, Ethan"]
[Result "1-0"]
[Annotator "RC"]
[ECO "C47"]
[WhiteElo "2211"]
[BlackElo "1995"]
[PlyCount "53"]
[EventDate "2025.01.03"]
[EventType "swiss"]
[EventCountry "USA"]
[SourceTitle "playchess.com"]
[Source "ChessBase"]
[SourceQuality "1"]
[TimeControl "5400+30"]

1. e4 {[%emt 0:00:02]} e5 {[%emt 0:00:27]} 2. Nf3 {[%emt 0:00:05]} Nc6 {[%emt 0:00:02]} 3. Nc3 {[%emt 0:00:06]} Nf6 {[%emt 0:00:12]} 4. a4 {[%emt 0:00:04]} a6 {[%emt 0:00:48]} 5. d4 {[%emt 0:00:34]} exd4 {[%emt 0:00:19]} 6. Nxd4 {[%emt 0:00:09]} Bb4 {[%emt 0:00:36]} 7. Nxc6 {[%emt 0:00:11]} bxc6 {[%emt 0:00:03]} 8. Bd3 {[%emt 0:00:44]} d5 {[%emt 0:01:30]} 9. exd5 {[%emt 0:03:22]} cxd5 {[%emt 0:00:18]} 10. O-O {[%emt 0:00:25]} O-O {[%emt 0:01:08]} 11. Bg5 {[%emt 0:00:18]} c6 {[%emt 0:07:34]} 12. Qf3 {[%emt 0:00:15]} Be7 {[%emt 0:06:32]} 13. Rfe1 {[%emt 0:03:39]} Bg4 {[%emt 0:12:26]} 14. Qg3 {[%emt 0:03:52]} Bh5 {[%emt 0:03:17]} 15. Qh4 {[%emt 0:19:27]} Bg6 {[%emt 0:00:26]} 16. Bxg6 {[%emt 0:00:34]} fxg6 {[%emt 0:09:19]} 17. Qh3 {[%emt 0:04:29]} Bc5 {[%emt 0:09:32]} 18. Bh4 {[%emt 0:04:38]} g5 {[%emt 0:11:58]} 19. Bg3 {[%emt 0:11:08]} Qb6 {[%emt 0:18:51]} 20. Qe6+ {[%emt 0:02:02]} Kh8 {[%emt 0:00:27]} 21. a5 {[%emt 0:00:52]} Qa7 {[%emt 0:02:02]} 22. h3 {[%emt 0:03:19]} Nh5 {[%emt 0:01:09]} 23. Kh2 {[%emt 0:01:01]} Bxf2 {[%emt 0:03:50]} 24. Bxf2 {[%emt 0:00:07]} Qxf2 {[%emt 0:00:47]} 25. Qg4 {[%emt 0:00:44]} Qf4+ {[%emt 0:05:37]} 26. Qxf4 {[%emt 0:00:12]} gxf4 {[%emt 0:01:30]} 27. Re7 {[%emt 0:01:11]} 1-0

[Event "Marshall CC Premier 04-2025"]
[Site "New York"]
[Date "2025.04.05"]
[Round "1.6"]
[White "Pan, Zachary"]
[Black "Klenoff, Caleb"]
[Result "1/2-1/2"]
[Annotator "RC"]
[ECO "C07"]
[WhiteElo "1955"]
[BlackElo "2141"]
[PlyCount "85"]
[EventDate "2025.01.03"]
[EventType "swiss"]
[EventCountry "USA"]
[SourceTitle "playchess.com"]
[Source "ChessBase"]
[SourceQuality "1"]
[TimeControl "5400+30"]

1. e4 {[%emt 0:00:01]} e6 {[%emt 0:00:06]} 2. d4 {[%emt 0:00:03]} d5 {[%emt 0:00:21]} 3. Nd2 {[%emt 0:00:06]} c5 {[%emt 0:00:14]} 4. Ngf3 {[%emt 0:00:11]} cxd4 {[%emt 0:00:15]} 5. Nxd4 {[%emt 0:00:02]} Nc6 {[%emt 0:00:23]} 6. Bb5 {[%emt 0:00:11]} Bd7 {[%emt 0:00:05]} 7. Nxc6 {[%emt 0:00:06]} bxc6 {[%emt 0:00:08]} 8. Bd3 {[%emt 0:00:04]} Qc7 {[%emt 0:02:04]} 9. Qe2 {[%emt 0:00:20]} Ne7 {[%emt 0:01:59]} 10. Nf3 {[%emt 0:00:47]} Ng6 {[%emt 0:01:21]} 11. O-O {[%emt 0:04:58]} Bd6 {[%emt 0:02:03]} 12. Re1 {[%emt 0:05:41]} Nf4 {[%emt 0:03:29]} 13. Bxf4 {[%emt 0:00:19]} Bxf4 {[%emt 0:00:11]} 14. c4 {[%emt 0:05:28]} O-O {[%emt 0:10:11]} 15. g3 {[%emt 0:04:54]} Bh6 {[%emt 0:02:39]} 16. exd5 {[%emt 0:01:59]} cxd5 {[%emt 0:03:17]} 17. Qc2 {[%emt 0:08:25]} dxc4 {[%emt 0:01:44]} 18. Bxh7+ {[%emt 0:01:57]} Kh8 {[%emt 0:00:08]} 19. Ne5 {[%emt 0:01:03]} Rac8 {[%emt 0:13:31]} 20. Nxd7 {[%emt 0:00:56]} Qxd7 {[%emt 0:00:12]} 21. Rad1 {[%emt 0:01:42]} Qb5 {[%emt 0:02:41]} 22. Be4 {[%emt 0:01:58]} Rb8 {[%emt 0:13:10]} 23. b3 {[%emt 0:10:10]} cxb3 {[%emt 0:01:57]} 24. Qxb3 {[%emt 0:01:54]} Qa5 {[%emt 0:01:05]} 25. Qc2 {[%emt 0:01:00]} Rfc8 {[%emt 0:04:00]} 26. Qe2 {[%emt 0:00:37]} Kg8 {[%emt 0:05:21]} 27. Rb1 {[%emt 0:02:28]} Rxb1 {[%emt 0:01:34]} 28. Rxb1 {[%emt 0:00:41]} Rd8 {[%emt 0:02:26]} 29. Rd1 {[%emt 0:02:59]} Rxd1+ {[%emt 0:02:59]} 30. Qxd1 {[%emt 0:00:02]} g6 {[%emt 0:00:21]} 31. Qc2 {[%emt 0:02:20]} Bg7 {[%emt 0:00:54]} 32. h4 {[%emt 0:05:33]} Bd4 {[%emt 0:01:29]} 33. Kg2 {[%emt 0:01:00]} Kg7 {[%emt 0:00:49]} 34. a4 {[%emt 0:01:00]} Qe1 {[%emt 0:00:23]} 35. Bf3 {[%emt 0:00:27]} Qe5 {[%emt 0:01:24]} 36. Qc4 {[%emt 0:02:14]} Bb6 {[%emt 0:00:36]} 37. Qc2 {[%emt 0:02:49]} Qd4 {[%emt 0:00:42]} 38. Bc6 {[%emt 0:01:55]} e5 {[%emt 0:05:42]} 39. Bb7 {[%emt 0:13:12]} Qb4 {[%emt 0:02:50]} 40. Bc6 {[%emt 0:00:48]} Qd4 {[%emt 0:02:12]} 41. Bb7 {[%emt 0:00:08]} Kh6 {[%emt 0:01:50]} 42. Qc1+ {[%emt 0:00:18]} Kg7 {[%emt 0:00:30]} 43. Qc2 {[%emt 0:00:33]} 1/2-1/2

[Event "Marshall CC Premier 04-2025"]
[Site "New York"]
[Date "2025.04.05"]
[Round "1.7"]
[White "Mottola, Max"]
[Black "Shankar, Pranav"]
[Result "1-0"]
[Annotator "RC"]
[ECO "B15"]
[WhiteElo "2121"]
[BlackElo "1966"]
[PlyCount "45"]
[EventDate "2025.01.03"]
[EventType "swiss"]
[EventCountry "USA"]
[SourceTitle "playchess.com"]
[Source "ChessBase"]
[SourceQuality "1"]
[TimeControl "5400+30"]

1. e4 {[%emt 0:00:39]} c6 {[%emt 0:03:09]} 2. d4 {[%emt 0:00:16]} d5 {[%emt 0:00:18]} 3. Nc3 {[%emt 0:00:50]} dxe4 {[%emt 0:00:34]} 4. Nxe4 {[%emt 0:00:11]} Nf6 {[%emt 0:00:01]} 5. Nxf6+ {[%emt 0:00:10]} exf6 {[%emt 0:00:04]} 6. c3 {[%emt 0:00:23]} Bd6 {[%emt 0:00:06]} 7. Bd3 {[%emt 0:00:07]} O-O {[%emt 0:00:07]} 8. Ne2 {[%emt 0:00:54]} Re8 {[%emt 0:00:39]} 9. O-O {[%emt 0:00:31]} Nd7 {[%emt 0:00:42]} 10. Ng3 {[%emt 0:00:14]} g6 {[%emt 0:02:24]} 11. Bh6 {[%emt 0:00:11]} f5 {[%emt 0:07:56]} 12. Qd2 {[%emt 0:00:08]} Bf8 {[%emt 0:05:37]} 13. Bg5 {[%emt 0:00:13]} Be7 {[%emt 0:02:06]} 14. Bxe7 {[%emt 0:03:33]} Rxe7 {[%emt 0:03:12]} 15. Bxf5 {[%emt 0:07:30]} gxf5 {[%emt 0:01:47]} 16. Qg5+ {[%emt 0:00:40]} Kh8 {[%emt 0:00:58]} 17. Nxf5 {[%emt 0:01:08]} f6 {[%emt 0:01:48]} 18. Qh5 {[%emt 0:01:18]} Re6 {[%emt 0:03:57]} 19. Rae1 {[%emt 0:12:46]} Qg8 {[%emt 0:10:49]} 20. Nh6 {[%emt 0:11:15]} Rxe1 {[%emt 0:00:20]} 21. Rxe1 {[%emt 0:01:59]} Qg6 {[%emt 0:00:58]} 22. Re8+ {[%emt 0:00:29]} Kg7 {[%emt 0:00:11]} 23. Rg8# {[%emt 0:00:06]} 1-0

[Event "Marshall CC Premier 04-2025"]
[Site "New York"]
[Date "2025.04.05"]
[Round "1.8"]
[White "Knowles, Chase"]
[Black "Marsh, James J"]
[Result "1-0"]
[Annotator "RC"]
[ECO "A17"]
[WhiteElo "1968"]
[BlackElo "2058"]
[PlyCount "57"]
[EventDate "2025.01.03"]
[EventType "swiss"]
[EventCountry "USA"]
[SourceTitle "playchess.com"]
[Source "ChessBase"]
[SourceQuality "1"]
[TimeControl "5400+30"]

1. Nf3 {[%emt 0:00:03]} d5 {[%emt 0:00:15]} 2. c4 {[%emt 0:00:13]} e6 {[%emt 0:00:07]} 3. e3 {[%emt 0:00:10]} Nf6 {[%emt 0:00:06]} 4. Nc3 {[%emt 0:00:07]} Bd6 {[%emt 0:00:33]} 5. b3 {[%emt 0:00:32]} O-O {[%emt 0:00:09]} 6. Bb2 {[%emt 0:00:04]} Re8 {[%emt 0:00:34]} 7. Be2 {[%emt 0:03:29]} dxc4 {[%emt 0:00:36]} 8. bxc4 {[%emt 0:00:19]} e5 {[%emt 0:00:12]} 9. Nb5 {[%emt 0:01:57]} c5 {[%emt 0:00:58]} 10. d3 {[%emt 0:03:15]} Nc6 {[%emt 0:01:12]} 11. Nxd6 {[%emt 0:03:44]} Qxd6 {[%emt 0:00:14]} 12. O-O {[%emt 0:00:19]} Bf5 {[%emt 0:02:44]} 13. Qb3 {[%emt 0:07:16]} Rad8 {[%emt 0:01:30]} 14. Rad1 {[%emt 0:06:24]} Rd7 {[%emt 0:01:53]} 15. h3 {[%emt 0:05:02]} h6 {[%emt 0:04:53]} 16. Qc3 {[%emt 0:07:29]} Qe7 {[%emt 0:04:39]} 17. Rd2 {[%emt 0:05:21]} Nh7 {[%emt 0:11:55]} 18. d4 {[%emt 0:11:21]} Nf6 {[%emt 0:19:28]} 19. Qc1 {[%emt 0:11:19]} exd4 {[%emt 0:05:48]} 20. exd4 {[%emt 0:01:59]} cxd4 {[%emt 0:03:21]} 21. Bd3 {[%emt 0:08:20]} Bxd3 {[%emt 0:06:47]} 22. Rxd3 {[%emt 0:00:02]} Red8 {[%emt 0:00:55]} 23. Re1 {[%emt 0:08:11]} Qc5 {[%emt 0:01:20]} 24. Ba3 {[%emt 0:00:26]} Qf5 {[%emt 0:01:41]} 25. Qd1 {[%emt 0:02:37]} Ne4 {[%emt 0:02:04]} 26. g4 {[%emt 0:02:17]} Qh7 {[%emt 0:05:32]} 27. Qe2 {[%emt 0:03:49]} Ng5 {[%emt 0:02:09]} 28. Qe8+ {[%emt 0:00:10]} Rxe8 {[%emt 0:01:36]} 29. Rxe8# {[%emt 0:00:03]} 1-0